{"text_format":"1","workbook":"xlsx","n_sheets":6,"sheets":["CLASSIFICAÇÃO GERAL 2025","jun2025","jul2025","ago2025","set2025","out2025"],"not_rendered":{"charts":0,"images":2,"macros":1,"external_links":0,"defined_names":1,"comments":0,"pivot_tables":0},"unopened":[],"bounds":{"document_bytes":16777216,"sheet_cells":100000,"rows_first":2000,"rows_last":500,"rows_between":2000,"halvings":0,"cell_chars":16384,"cell_head_chars":4096},"cells_cut":0,"cells_raw":0,"read":"whole","date_system":"1900"}

{"sheet":"CLASSIFICAÇÃO GERAL 2025","index":0,"n_rows":147,"n_cols":5,"rows_kept":147,"cut":false,"hidden":false,"merged":[[0,0,0,4],[1,0,1,4]]}
["CLASSIFICAÇÃO GERAL ACPA – TEMPORADA 2025 DOMINGO"]
["TRINCA-FERRO FIBRA","Pássaro","Proprietário","Origem","Pontos"]
["POSIÇÃO","NOME DO PÁSSARO","NOME DO PROPRIETÁRIO","ORIGEM (CIDADE)","PONTUAÇÃO"]
["1º","NEGO VEIO","LUIZINHO","PETRÓPOLIS",{"$f":"26+26+28+19+23+43+23+22+22+15+23+17+22+23+24","v":356}]
["2º","ATREVIDO","JOSENILTON","PARAÍBA DO SUL",{"$f":"21+30+26+21+15+22+20+17+16+19+13+18+16+23","v":277}]
["3º","PROBLEMA","EMERSON","ANTA",{"$f":"26+14+21+20+18+21+19+22+21+28","v":210}]
["4º","TURBO","ADRIANO","PETRÓPOLIS",{"$f":"23+20+28+19+16+20+18+24","v":168}]
["5º","ASTRO","ALEXANDRE/ANA CARLA","SOUZA AGUIAR",{"$f":"30+23+30+26","v":109}]
["6º","BICO BOM","PERROTA","PARAÍBA DO SUL",{"$f":"18+21+24+14+23","v":100}]
["7º","CRUEL","RODRIGO/FELIPE","ROCHEDO DE MINAS",{"$f":"17+28+30+22","v":97}]
["8º","FANTÁSTICO","TIAGUINHO","JUIZ DE FORA",{"$f":"24+24+21+26","v":95}]
["9º","MAESTRO","TONI","JUIZ DE FORA",{"$f":"28+21+28+18","v":95}]
["10º","XERIFE","LI","BARBACENA",{"$f":"30+17+24+24","v":95}]
["11º","MAGAYVER","JESUS DE PAULA","TRÊS RIOS",{"$f":"21+13+19+21+17","v":91}]
["12º","SUPREME","ANDRÉ LUIS","PARAÍBA DO SUL",{"$f":"26+28+24","v":78}]
["13º","BOLSONARO","DANIEL","JUIZ DE FORA",{"$f":"22+24+30","v":76}]
["14º","MOLEQUE DOIDO","MARINHO","SANTOS DUMONT",{"$f":"21+26+28","v":75}]
["15º","BOLO DOIDO","IGOR","PARAÍBA DO SUL",{"$f":"17+24+15+15","v":71}]
["16º","LOKI","PAULINHO/ARTHUR","TRÊS RIOS",{"$f":"18+18+18+17","v":71}]
["17º","CHARADA","GABRIEL","PETRÓPOLIS",{"$f":"24+20+26","v":70}]
["18º","SUSSURRO","DOMINGOS/CH","PARAÍBA DO SUL",{"$f":"16+18+18+18","v":70}]
["19º","DEMOLIDOR","MICHEL","TRÊS RIOS",{"$f":"22+26+19","v":67}]
["20º","NOVATO","LUCIMAR/LUIZ HENRIQUE","TRÊS RIOS",{"$f":"22+28+13","v":63}]
["21º","RAMBO","LUIZINHO","PETRÓPOLIS",{"$f":"16+15+13+17","v":61}]
["22º","MEIA NOITE","MARCÃO","JUIZ DE FORA",{"$f":"30+30","v":60}]
["23º","POPAYE","GILSON/GUSTAVO","TRÊS RIOS/S. DUMONT",{"$f":"24+19+16","v":59}]
["24º","TOP","JÚLIO FAMÍLIA MINGAL","PARAÍBA DO SUL",{"$f":"16+17+26","v":59}]
["25º","MOLEQUE DOIDO","JOSÉ AMERICO","DORES DE CAMPOS",{"$f":"28+30","v":58}]
["26º","CADILLAC","DANIEL","JUIZ DE FORA",{"$f":"30+24","v":54}]
["27º","FERRADURA","GILSON/GUSTAVO","SANTOS DUMONT",{"$f":"30+24","v":54}]
["28º","SCARFACE","QUAQUA/PETETECO","AVELAR",{"$f":"28+26","v":54}]
["29º","FARISEU","WL FAMÍLIA MINGAL","PARAÍBA DO SUL",{"$f":"19+20+13","v":52}]
["30º","BOINA PRETA","HERALDO","PETRÓPOLIS",{"$f":"28+23","v":51}]
["31º","MALVADO","ADALBERTO","BEMPOSTA",{"$f":"30+21","v":51}]
["32º","GARANHÃO","RODRIGO","PATY DO ALFERES",{"$f":"30+20","v":50}]
["33º","ZICO","BRUNO/MARCINHO","JUIZ DE FORA",{"$f":"20+30","v":50}]
["34º","DITADOR","RODRIGO/FELIPE","ROCHEDO DE MINAS",{"$f":"28+20","v":48}]
["35º","VELOSTER","HENRIQUE","ANTA",{"$f":"16+14+18","v":48}]
["36º","ZEUS","ARTHUR/ALESSANDRO","JUIZ DE FORA",{"$f":"23+23","v":46}]
["37º","CABULOSO","BORRACHA","JUIZ DE FORA",{"$f":"23+21","v":44}]
["38º","CLONE","FÁBIO JR","PATY DO ALFERES",{"$f":"22+21","v":43}]
["39º","SEM LIMITE","JUNINHO","TRÊS RIOS",{"$f":"26+17","v":43}]
["40º","DUBLE","GILSON/GUSTAVO","S. DUMONT/TRÊS RIOS",{"$f":"28+14","v":42}]
["41º","LEKE","GUSTAVO","PARAÍBA DO SUL",{"$f":"23+19","v":42}]
["42º","MATA RINDO","JUNINHO/ALESSANDRO/DIEGO","JUIZ DE FORA",{"$f":"14+28","v":42}]
["43º","MARRETA","GUSTAVO/GILSON","TRÊS RIOS/SANTOS DUMONT",{"$f":"26+15","v":41}]
["44º","MEXICANO","RODRIGO/BRUNO","PETRÓPOLIS",{"$f":"19+20","v":39}]
["45º","FERA","REINALDO","JUIZ DE FORA",{"$f":"16+20","v":36}]
["46º","ABUSADO","MÁRCIO","PETRÓPOLIS",{"$f":"15+19","v":34}]
["47º","OURO BRANCO","FELIPE","TRÊS RIOS",{"$f":"13+20","v":33}]
["48º","FARAO","RAFAEL SATYRO","PETRÓPOLIS",{"$f":"15+17","v":32}]
["49º","GUERREIRO","ELISEU ARCANJO","TRÊS RIOS",{"$f":"17+14","v":31}]
["50º","AMIZADE","FLÁVIO","MIGUEL PEREIRA",30]
["51º","CAPITÃO","JÚNIOR PAIXÃO","PETRÓPOLIS",30]
["52º","CRACK","ALCINEI/FRANÇA","JUIZ DE FORA",30]
["53º","TORRE FORTE","DANIEL","JUIZ DE FORA",30]
["54º","BAZUCA","ADALBERTO","BEMPOSTA",28]
["55º","BIG SHOW","ITALO SANTOS","PARAÍBA DO SUL",{"$f":"14+14","v":28}]
["56º","GUERREIRO","RUAN","MAR DE ESPANHA",28]
["57º","TARRAFA","EDIMAR LEITEIRO","PETRÓPOLIS",{"$f":"13+15","v":28}]
["58º","ABUTRE","PAULO AMARAL","SANTOS DUMONT",26]
["59º","EXCALIBUR","NATANAEL","BEMPOSTA",26]
["60º","FEROZ","GILSON/GUSTAVO","TRÊS RIOS/S. DUMONT",26]
["61º","FRAJOLA","LUCAS","PETRÓPOLIS",{"$f":"13+13","v":26}]
["62º","ULTRAGAS","GABRIEL","MAR DE ESPANHA",26]
["63º","ASA BRANCA","THIAGO BATISTA","PETRÓPOLIS",24]
["64º","BRASILEIRINHO","PAULINHO/ARTHUR","TRÊS RIOS",24]
["65º","MARESIA","GABRIEL","MARIPÁ DE MINAS",24]
["66º","TORNADO","NILMAR","MAR DE ESPANHA",24]
["67º","ABENÇOADO","GILSON/GUSTAVO","S. DUMONT/TRÊS RIOS",23]
["68º","OURO BRUTO","MARQUINHO","TRÊS RIOS",23]
["69º","PRESIDENTE","FERNANDO","SAPUCAIA",23]
["70º","RARIDADE","TIAGUINHO","JUIZ DE FORA",23]
["71º","SUZUKI","JOÃO PEDRO","PARAÍBA DO SUL",23]
["72º","ABENÇOADO","JUNIN","JUIZ DE FORA",22]
["73º","ALMIRANTE","SAMUEL MATOS","MARIPÁ DE MINAS",22]
["74º","AMOSTRADINHO","GUSTAVO/GILSON","TRÊS RIOS/S. DUMONT",22]
["75º","BIG 2","FABIANO","PETRÓPOLIS",22]
["76º","ESTRELA","RAFAEL DIAS","PARAÍBA DO SUL",22]
["77º","MAKARIOS","RAFAEL DIAS","PARAÍBA DO SUL",22]
["78º","MARAVILHA","RUAN","MAR DE ESPANHA",22]
["79º","ZEUS","SILVAN LOPES","JUIZ DE FORA",22]
["80º","BUCAINHA","CYR NORBERTO","JUIZ DE FORA",21]
["81º","COWBOY","EULER","BICAS",21]
["82º","IMPERADOR","LUIS/ZECA","CHIADOR",21]
["83º","THOR","JÚNIOR","MARIPÁ DE MINAS",21]
["84º","CALIBRE","FAMÍLIA MINGAL","PARAÍBA DO SUL",20]
["85º","GUARDIÃO","JONAS","PETRÓPOLIS",20]
["86º","HULK","LORRAN","INDEPENDÊNCIA",20]
["87º","MARRETA","LUCAS PIU PIU","TRÊS RIOS",20]
["88º","REVELAÇÃO","GELSON","TRÊS RIOS",20]
["89º","TAURUS","LÉO","PETRÓPOLIS",20]
["90º","007","GUSTAVO/GILSON","TRÊS RIOS/S. DUMONT",19]
["91º","CYBORG","FAL","MARIPÁ DE MINAS",19]
["92º","MARRETA","MARCELO","SEBOLAS",19]
["93º","MITO","GILSON","SANTOS DUMONT",19]
["94º","PESADELO","THIAGO","JUIZ DE FORA",19]
["95º","REI","GUSTAVO/GILSON","TRÊS RIOS/S. DUMONT",19]
["96º","VELOX","RENNER","MARIPÁ DE MINAS",19]
["97º","APITO","JANDERSON","TRÊS RIOS",18]
["98º","CRAQUE","ALCINEI","JUIZ DE FORA",18]
["99º","GUARDIÃO","ÍCARO/GABRIEL","PARAÍBA DO SUL",18]
["100º","IGNORANTE","JUNINHO","TRÊS RIOS",18]
["101º","SAMURAI","VANDERLY","BICAS",18]
["102º","SNIPER","MARCELO","PETRÓPOLIS",18]
["103º","CATEDRAL","GUSTAVO/GILSON","TRÊS RIOS/S. DUMONT",17]
["104º","NEFILIN","OTONIEL","TRÊS RIOS",17]
["105º","NEGUINHO","JESUS DE PAULA","TRÊS RIOS",17]
["106º","PIVETE","HENRIQUE","ANTA",17]
["107º","TARJA PRETA","HENRIQUE JARDIM","ANTA",17]
["108º","BRUTO","RUAN BARRINHA","PARAÍBA DO SUL",16]
["109º","CAPOEIRA","WANDER/NICIA","BICAS",16]
["110º","KI SHOW","RODRIGO/RAFAEL","PETRÓPOLIS",16]
["111º","LOKI","DALIO LEAL","TRÊS RIOS",16]
["112º","MALVADO","MARCELO","SEBOLAS",16]
["113º","PORCO","BRUNO/RODRIGO","PETRÓPOLIS",16]
["114º","QUEBRA SANTO","JOÃO CARLOS","JUIZ DE FORA",16]
["115º","TORETO","JOÃO VITOR","PETRÓPOLIS",16]
["116º","ABSOLUTO","XANDINHO","SANTOS DUMONT",15]
["117º","EXTINTOR","JOÃO MARCOS","AREAL",15]
["118º","FAIXA PRETA","LEONARDO","TRÊS RIOS",15]
["119º","JOIA RARA","RAFAEL SATYRO","PETRÓPOLIS",15]
["120º","TALARICO","ALFREDO","MATIAS BARBOSA",15]
["121º","V8","DOUGLAS","TRÊS RIOS",15]
["122º","VENENO","NOVELINO","JUIZ DE FORA",15]
["123º","CAVEIRÃO","CLOVIS/RODRIGO","TRÊS RIOS",14]
["124º","DIEGO","EULER","TRÊS RIOS",14]
["125º","DINO","AMILTON","JUIZ DE FORA",14]
["126º","JOHN WICK","IVERSON","TRÊS RIOS",14]
["127º","LEGENDÁRIO","LUIZ PENA BRANCA","JUIZ DE FORA",14]
["128º","SUPER SONICO","GABRIEL","MAR DE ESPANHA",14]
["129º","TIROTEIO","DOUGLAS/CABRITO","JUIZ DE FORA",14]
["130º","BOI BANDIDO","VINICIOS","ANTA",13]
["131º","BOPE","GILSON/GUSTAVO","SANTOS DUMONT",13]
["132º","COVID-19","GUSTAVO/GILSON","TRÊS RIOS/S. DUMONT",13]
["133º","DOPAMINA","RAPHAEL","MATIAS BARBOSA",13]
["134º","FULGORE","SILAS","TRÊS RIOS",13]
["135º","SEILA","FAMÍLIA MINGAL","PARAÍBA DO SUL",13]
["136º"]
["137º"]
["138º"]
["139º"]
["140º"]
["141º"]
["142º"]
["143º"]
["144º"]

{"sheet":"jun2025","index":1,"n_rows":17,"n_cols":6,"rows_kept":17,"cut":false,"hidden":false,"merged":[[0,0,0,5]]}
["29/06/2025 (DOMINGO)"]
["POS.","PÁSSARO","PROPRIETÁRIO","ORIGEM","CANTOS","PONTOS"]
["1º","GARANHÃO","RODRIGO","PATY DO ALFERES",156,30]
["2º","TURBO","ADRIANO","PETRÓPOLIS",124,28]
["3º","ATREVIDO","JOSENILTON","PARAÍBA DO SUL",116,26]
["4º","FERRADURA","GUSTAVO/GILSON","TRÊS RIOS/SD",105,24]
["5º","ABENÇOADO","GILSON/GUSTAVO","S. DUMONT/TRÊS RIOS",103,23]
["6º","BOLSONARO","NATHAN","PETRÓPOLIS",102,22]
["7º","CLONE","FÁBIO JR","AVELLAR",101,21]
["8º","MEXICANO","RODRIGO","PETRÓPOLIS",86,20]
["9º","MITO","GILSON","SANTOS DUMONT",82,19]
["10º","SUSSURRO","CH/DOMINGOS","PARAÍBA DO SUL",82,18]
["11º","HULK","LORRAN","PETRÓPOLIS",52]
["12º","JOIA RARA","RAFAEL","PETRÓPOLIS",31]
["13º"]
["14º"]
["15º"]

{"sheet":"jul2025","index":2,"n_rows":42,"n_cols":27,"rows_kept":42,"cut":false,"hidden":false,"merged":[[0,0,0,5],[0,7,0,12],[0,14,0,19],[0,21,0,26]]}
["06/07/2025 (DOMINGO)",null,null,null,null,null,null,"13/07/2025 (DOMINGO)",null,null,null,null,null,null,"20/07/2025 (DOMINGO)",null,null,null,null,null,null,"27/07/2025 (DOMINGO)"]
["POS.","PÁSSARO","PROPRIETÁRIO","ORIGEM","CANTOS","PONTOS",null,"POS.","PÁSSARO","PROPRIETÁRIO","ORIGEM","CANTOS","PONTOS",null,"POS.","PÁSSARO","PROPRIETÁRIO","ORIGEM","CANTOS","PONTOS",null,"POS.","PÁSSARO","PROPRIETÁRIO","ORIGEM","CANTOS","PONTOS"]
["1º","FERRADURA","GILSON/GUSTAVO","SANTOS DUMONT",111,30,null,"1º","ATREVIDO","JOSENILTON","PARAÍBA DO SUL",120,30,null,"1º","XERIFE","LI","BARBACENA",163,30,null,"1º","TORRE FORTE","DANIEL","JUIZ DE FORA",179,30]
["2º","BOINA PRETA","HERALDO","PETRÓPOLIS",111,28,null,"2º","DUBLE","GILSON/GUSTAVO","S. DUMONT/TRÊS RIOS",115,28,null,"2º","NEGO VEIO","LUIZINHO","PETRÓPOLIS",129,28,null,"2º","GUERREIRO","RUAN","MAR DE ESPANHA",152,28]
["3º","NEGO VEIO","LUIZINHO","PETRÓPOLIS",111,26,null,"3º","NEGO VEIO","LUIZINHO","PETRÓPOLIS",111,26,null,"3º","PROBLEMA","EMERSON","ANTA",109,26,null,"3º","ABUTRE","PAULO AMARAL","SANTOS DUMONT",143,26]
["4º","FANTÁSTICO","TIAGUINHO","JUIZ DE FORA",107,24,null,"4º","BOLO DOIDO","JEFERSON","PARAÍBA DO SUL",104,24,null,"4º","FANTÁSTICO","TIAGUINHO","JUIZ DE FORA",104,24,null,"4º","BOLSONARO","NATHAN","PETRÓPOLIS",143,24]
["5º","TURBO","ADRIANO","PETRÓPOLIS",104,23,null,"5º","OURO BRUTO","MARQUINHO","TRÊS RIOS",102,23,null,"5º","PRESIDENTE","FERNANDO","SAPUCAIA",100,23,null,"5º","BOINA PRETA","HERALDO","PETRÓPOLIS",130,23]
["6º","ZEUS","SILVAN LOPES","JUIZ DE FORA",102,22,null,"6º","CLONE","FÁBIO JR","PATY DO ALFERES",100,22,null,"6º","DEMOLIDOR","MICHEL","TRÊS RIOS",94,22,null,"6º","ESTRELA","RAFAEL DIAS","PARAÍBA DO SUL",127,22]
["7º","ATREVIDO","JOSENILTON","PARAÍBA DO SUL",100,21,null,"7º","MAGAYVER","JESUS ANTÔNIO","TRÊS RIOS",100,21,null,"7º","ATREVIDO","JOSENILTON","PARAÍBA DO SUL",90,21,null,"7º","COWBOY","EULER","BICAS",123,21]
["8º","HULK","LORRAN","INDEPENDÊNCIA",99,20,null,"8º","TURBO","ADRIANO","PETRÓPOLIS",97,20,null,"8º","REVELAÇÃO","GELSON","TRÊS RIOS",90,20,null,"8º","GARANHÃO","RODRIGO","PATY DO ALFERES",122,20]
["9º","MEXICANO","RODRIGO/BRUNO","PETRÓPOLIS",93,19,null,"9º","MARRETA","MARCELO","SEBOLAS",97,19,null,"9º","TURBO","ADRIANO","PETRÓPOLIS",89,19,null,"9º","NEGO VEIO","LUIZINHO","PETRÓPOLIS",121,19]
["10º","APITO","JANDERSON","TRÊS RIOS",86,18,null,"10º","SNIPER","MARCELO","PETRÓPOLIS",72,18,null,"10º","SUSSURRO","CH/DOMINGOS","PARAÍBA DO SUL",88,18,null,"10º","GUARDIÃO","ÍCARO/GABRIEL","PARAÍBA DO SUL",119,18]
["11º","BOLO DOIDO","JEFERSON","PARAÍBA DO SUL",79,17,null,"11º","FARAO","RAFAEL SATYRO","PETRÓPOLIS",70,17,null,"11º","TARJA PRETA","HENRIQUE JARDIM","ANTA",87,17,null,"11º","XERIFE","LI","BARBACENA",111,17]
["12º","SUSSURRO","DOMINGOS/CH","PARAÍBA DO SUL",78,16,null,"12º","TOP","FAMÍLIA MINGAL","PARAÍBA DO SUL",70,16,null,"12º","MALVADO","MARCELO","SEBOLAS",82,16,null,"12º","TURBO","ADRIANO","PETRÓPOLIS",108,16]
["13º","FARAO","RAFAEL SATYRO","PETRÓPOLIS",70,15,null,"13º","JOIA RARA","RAFAEL SATYRO","PETRÓPOLIS",60,15,null,"13º","BOLO DOIDO","JEFERSON","PARAÍBA DO SUL",80,15,null,"13º","ATREVIDO","JOSENILTON","PARAÍBA DO SUL",106,15]
["14º",null,null,null,null,null,null,"14º","MALVADO","JUNIOR VIEIRA","SARDOAL",55,null,null,"14º","DUBLE","GILSON/GUSTAVO","S. DUMONT/TRÊS RIOS",77,14,null,"14º","JOHN WICK","IVERSON","TRÊS RIOS",106,14]
["15º",null,null,null,null,null,null,"15º","SUSSURO","DOMINGOS/CH","PARAÍBA DO SUL",49,null,null,"15º","MAGAYVER","JESUS DE PAULA","TRÊS RIOS",73,13,null,"15º","TARRAFA","EDIMAR LEITEIRO","PETRÓPOLIS",96,13]
["16º",null,null,null,null,null,null,"16º","SEILA","FAMÍLIA MINGAL","PARAÍBA DO SUL",46,null,null,"16º","FULGORE","SILAS","TRÊS RIOS",69,null,null,"16º","SUSSURRO","CH/DOMINGOS","PARAÍBA DO SUL",95]
["17º",null,null,null,null,null,null,"17º","MEXICANO","BRUNO/RODRIGO","PETRÓPOLIS",44,null,null,"17º","OURO BRUTO","MARQUINHO","TRÊS RIOS",69,null,null,"17º","FRAJOLA","LUCAS","PETRÓPOLIS",94]
["18º",null,null,null,null,null,null,"18º","GRANADA","HENRIQUE","ANTA",36,null,null,"18º","MEXICANO","BRUNO/RODRIGO","PETRÓPOLIS",67,null,null,"18º","GUERREIRO","ELISEU","TRÊS RIOS",94]
["19º",null,null,null,null,null,null,"19º",null,null,null,null,null,null,"19º","BRUTO","RUAN BARRINHA","PARAÍBA DO SUL",66,null,null,"19º","MAGAYVER","JESUS DE PAULA","TRÊS RIOS",90]
["20º",null,null,null,null,null,null,"20º",null,null,null,null,null,null,"20º","FERRADURA","GUSTAVO/GILSON","TRÊS RIOS",65,null,null,"20º","MAESTRO FILHO","RAFAEL","PARAÍBA DO SUL",81]
["21º",null,null,null,null,null,null,"21º",null,null,null,null,null,null,"21º","CHICO BENTO","MÁRCIO","JUIZ DE FORA",60,null,null,"21º","SEILA","FAMÍLIA MINGAL","PARAÍBA DO SUL",81]
["22º",null,null,null,null,null,null,"22º",null,null,null,null,null,null,"22º",null,null,null,null,null,null,"22º","TALENTO","LOIRIN","PARAÍBA DO SUL",81]
["23º",null,null,null,null,null,null,"23º",null,null,null,null,null,null,"23º",null,null,null,null,null,null,"23º","BMW","SASSÁ/GABRIEL","PARAÍBA DO SUL",80]
["24º",null,null,null,null,null,null,"24º",null,null,null,null,null,null,"24º",null,null,null,null,null,null,"24º","FORÇA JOVEM","VINICIUS","TRÊS RIOS",77]
["25º",null,null,null,null,null,null,"25º",null,null,null,null,null,null,"25º",null,null,null,null,null,null,"25º","NERVOSO","GLEISON","TRÊS RIOS",77]
["26º",null,null,null,null,null,null,"26º",null,null,null,null,null,null,"26º",null,null,null,null,null,null,"26º","ABUSADO","NI SANTANA","TRÊS RIOS",76]
["27º",null,null,null,null,null,null,"27º",null,null,null,null,null,null,"27º",null,null,null,null,null,null,"27º","TARJA PRETA","HENRIQUE","ANTA",73]
["28º",null,null,null,null,null,null,"28º",null,null,null,null,null,null,"28º",null,null,null,null,null,null,"28º","BOPE","GILSON/GUSTAVO","SANTOS DUMONT",72]
["29º",null,null,null,null,null,null,"29º",null,null,null,null,null,null,"29º",null,null,null,null,null,null,"29º","FULGORE","SILAS FLÁVIO","TRÊS RIOS",69]
["30º",null,null,null,null,null,null,"30º",null,null,null,null,null,null,"30º",null,null,null,null,null,null,"30º","FERRADURA","GUSTAVO/GILSON","T. RIOS/S. DUMONT",64]
["31º",null,null,null,null,null,null,"31º",null,null,null,null,null,null,"31º",null,null,null,null,null,null,"31º","OURO BRUTO","MARQUINHO","TRÊS RIOS",63]
["32º",null,null,null,null,null,null,"32º",null,null,null,null,null,null,"32º",null,null,null,null,null,null,"32º","KRATOS","LEANDRO","TRÊS RIOS",63]
["33º",null,null,null,null,null,null,"33º",null,null,null,null,null,null,"33º",null,null,null,null,null,null,"33º","BEIRA MAR","CAROÇO","ANTA",61]
["34º",null,null,null,null,null,null,"34º",null,null,null,null,null,null,"34º",null,null,null,null,null,null,"34º"]
["35º",null,null,null,null,null,null,"35º",null,null,null,null,null,null,"35º",null,null,null,null,null,null,"35º"]
["36º",null,null,null,null,null,null,"36º",null,null,null,null,null,null,"36º",null,null,null,null,null,null,"36º"]
["37º",null,null,null,null,null,null,"37º",null,null,null,null,null,null,"37º",null,null,null,null,null,null,"37º"]
["38º",null,null,null,null,null,null,"38º",null,null,null,null,null,null,"38º",null,null,null,null,null,null,"38º"]
["39º",null,null,null,null,null,null,"39º",null,null,null,null,null,null,"39º",null,null,null,null,null,null,"39º"]
["40º",null,null,null,null,null,null,"40º",null,null,null,null,null,null,"40º",null,null,null,null,null,null,"40º"]

{"sheet":"ago2025","index":3,"n_rows":42,"n_cols":35,"rows_kept":42,"cut":false,"hidden":false,"merged":[[0,0,0,6],[0,8,0,13],[0,15,0,20],[0,22,0,27],[0,29,0,34]]}
["03/08/2025 (DOMINGO)",null,null,null,null,null,null,null,"10/08/2025 (DOMINGO)",null,null,null,null,null,null,"17/08/2025 (DOMINGO)",null,null,null,null,null,null,"24/08/2025 (DOMINGO)",null,null,null,null,null,null,"31/08/2025 (DOMINGO)"]
["POS.","PÁSSARO","PROPRIETÁRIO","ORIGEM","VASSOURADA","CANTOS","PONTOS",null,"POS.","PÁSSARO","PROPRIETÁRIO","ORIGEM","CANTOS","PONTOS",null,"POS.","PÁSSARO","PROPRIETÁRIO","ORIGEM","CANTOS","PONTOS",null,"POS.","PÁSSARO","PROPRIETÁRIO","ORIGEM","CANTOS","PONTOS",null,"POS.","PÁSSARO","PROPRIETÁRIO","ORIGEM","CANTOS","PONTOS"]
["1º","ASTRO","ALEXANDRE/ANA CARLA","SOUZA AGUIAR",83,150,30,null,"1º","AMIZADE","FLÁVIO","MIGUEL PEREIRA",179,30,null,"1º","CADILLAC","DANIEL","JUIZ DE FORA",151,30,null,"1º","MEIA NOITE","MARCÃO","JUIZ DE FORA",173,30,null,"1º","MALVADO","ADALBERTO","BEMPOSTA",162,30]
["2º","SCARFACE","QUAQUA/PETETECO","AVELAR",66,135,28,null,"2º","MOLEQUE DOIDO","JOSÉ AMERICO","DORES DE CAMPOS",177,28,null,"2º","NEGO VEIO","LUIZINHO","PETRÓPOLIS",128,28,null,"2º","SUPREME","ANDRÉ LUIS","PARAÍBA DO SUL",153,28,null,"2º","NOVATO","LUCIMAR/LUIZ HENRIQUE","TRÊS RIOS",157,28]
["3º","DEMOLIDOR","MICHEL","TRÊS RIOS",68,117,26,null,"3º","SUPREME","ANDRÉ","PARAÍBA DO SUL",153,26,null,"3º","CHARADA","GABRIEL","PETRÓPOLIS",127,26,null,"3º","MOLEQUE DOIDO","MARINHO","SANTOS DUMONT",139,26,null,"3º","ULTRAGAS","GABRIEL","MAR DE ESPANHA",145,26]
["4º","CHARADA","GABRIEL","PETRÓPOLIS",74,108,24,null,"4º","XERIFE","LI","BARBACENA",150,24,null,"4º","XERIFE","LI","BARBACENA",126,24,null,"4º","CADILLAC","DANIEL","JUIZ DE FORA",137,24,null,"4º","POPAYE","GILSON/GUSTAVO","SANTOS DUMONT",141,24]
["5º","NEGO VEIO","LUIZINHO","PETRÓPOLIS",78,105,23,null,"5º","SUZUKI","JOÃO PEDRO","PARAÍBA DO SUL",144,23,null,"5º","CABULOSO","BORRACHA","JUIZ DE FORA",123,23,null,"5º","NEGO VEIO","LUIZINHO","PETRÓPOLIS",136,23,null,"5º","ASTRO","ALEXANDRE/ANA CARLA","SOUZA AGUIAR",141,23]
["6º","ATREVIDO","JOSENILTON","PARAÍBA DO SUL",90,103,22,null,"6º","MAKARIOS","RAFAEL DIAS","PARAÍBA DO SUL",131,22,null,"6º","ABENÇOADO","JUNIN","JUIZ DE FORA",120,22,null,"6º","NOVATO","LUCIMAR/LUIZ HENRIQUE","TRÊS RIOS",132,22,null,"6º","NEGO VEIO","LUIZINHO","PETRÓPOLIS",138,22]
["7º","FANTÁSTICO","TIAGUINHO","JUIZ DE FORA",90,103,21,null,"7º","MOLEQUE DOIDO","MARINHO","SANTOS DUMONT",128,21,null,"7º","PROBLEMA","EMERSON","ANTA",120,21,null,"7º","MAGAYVER","JESUS DE PAULA","TRÊS RIOS",128,21,null,"7º","CABULOSO","BORRACHA","JUIZ DE FORA",136,21]
["8º","TURBO","ADRIANO","PETRÓPOLIS",63,103,20,null,"8º","CHARADA","GABRIEL","PETRÓPOLIS",128,20,null,"8º","ATREVIDO","JOSENILTON","PARAÍBA DO SUL",118,20,null,"8º","CALIBRE","FAMÍLIA MINGAL","PARAÍBA DO SUL",125,20,null,"8º","ZICO","BRUNO/MARCINHO","JUIZ DE FORA",120,20]
["9º","PESADELO","THIAGO","JUIZ DE FORA",65,102,19,null,"9º","MAGAYVER","JESUS DE PAULA","TRÊS RIOS",113,19,null,"9º","REI","GUSTAVO/GILSON","TRÊS RIOS/S. DUMONT",117,19,null,"9º","FARISEU","FAMÍLIA MINGAL","PARAÍBA DO SUL",118,19,null,"9º","DEMOLIDOR","MICHEL","TRÊS RIOS",120,19]
["10º","SUSSURRO","CH/DOMINGOS","PARAÍBA DO SUL",91,100,18,null,"10º","IGNORANTE","JUNINHO","TRÊS RIOS",110,18,null,"10º","CRAQUE","ALCINEI","JUIZ DE FORA",116,18,null,"10º","BICO BOM","PERROTA","PARAÍBA DO SUL",117,18,null,"10º","VELOSTER","HENRIQUE","ANTA",112,18]
["11º","GUERREIRO","ELISEU ARCANJO","TRÊS RIOS",69,100,17,null,"11º","CRUEL","RODRIGO/FELIPE","ROCHEDO DE MINAS",109,17,null,"11º","PIVETE","HENRIQUE","ANTA",113,17,null,"11º","ATREVIDO","JOSENILTON","PARAÍBA DO SUL",114,17,null,"11º","RAMBO","LUIZINHO","PETRÓPOLIS",110,17]
["12º","VELOSTER","HENRIQUE","ANTA",63,99,16,null,"12º","RAMBO","LUIZINHO","PETRÓPOLIS",109,16,null,"12º","LOKI","DALIO LEAL","TRÊS RIOS",112,16,null,"12º","CAPOEIRA","WANDER/NICIA","BICAS",110,16,null,"12º","ATREVIDO","JOSENILTON","PARAÍBA DO SUL",106,16]
["13º","TARRAFA","EDIMAR LEITEIRO","PETRÓPOLIS",70,96,15,null,"13º","NEGO VEIO","LUIZINHO","PETRÓPOLIS",108,15,null,"13º","RAMBO","LUIZINHO","PETRÓPOLIS",111,15,null,"13º","TALARICO","ALFREDO","MATIAS BARBOSA",109,15,null,"13º","ABSOLUTO","XANDINHO","SANTOS DUMONT",104,15]
["14º","PROBLEMA","EMERSON","ANTA",57,93,14,null,"14º","VELOSTER","HENRIQUE","ANTA",105,14,null,"14º","MATA RINDO","JUNINHO","JUIZ DE FORA",109,14,null,"14º","GUERREIRO","ELIZEU ARCANJO","TRÊS RIOS",108,14,null,"14º","DIEGO","EULER","TRÊS RIOS",101,14]
["15º","SEILA","FAMÍLIA MINGAL","PARAÍBA DO SUL",67,92,13,null,"15º","FRAJOLA","LUCAS","PETRÓPOLIS",101,13,null,"15º","FRAJOLA","LUCAS","PETRÓPOLIS",109,13,null,"15º","RAMBO","LUIZINHO","PETRÓPOLIS",107,13,null,"15º","BOPE","GILSON/GUSTAVO","SANTOS DUMONT",100,13]
["16º","MAESTRO FILHO","RAFAEL","PARAÍBA DO SUL",93,89,null,null,"16º","BOLA DE FOGO","JORGE MUNIZ","SAPUCAIA",97,null,null,"16º","DOPAMINA","RAPHAEL","MATIAS BARBOSA",100,null,null,"16º","BUCANHA","CYR","JUIZ DE FORA",104,null,null,"16º","LOKI","FÁBIO LEAL","TRÊS RIOS",99]
["17º","MARRETA","MARCELO","SEBOLAS",62,88,null,null,"17º","ATREVIDO","JOSENILTON","PARAÍBA DO SUL",97,null,null,"17º","FARISEU","FAMÍLIA MINGAL","PARAÍBA DO SUL",96,null,null,"17º","PIVETE","HENRIQUE","ANTA",102,null,null,"17º","IGNORANTE","JUNINHO","TRÊS RIOS",97]
["18º","TALENTO","LOIRIN","PARAÍBA DO SUL",61,83,null,null,"18º","ITACHI","IVERSON","TRÊS RIOS",97,null,null,"18º","CRUEL","RODRIGO/FELIPE","ROCHEDO DE MINAS",92,null,null,"18º","OUSADIA E ALEGRIA","CARLOS BRAND","PETRÓPOLIS",97,null,null,"18º","PROBLEMA","EMERSON","ANTA",95]
["19º","LULA","GLEISON","TRÊS RIOS",71,79,null,null,"19º","TURBO","ADRIANO","PETRÓPOLIS",95,null,null,"19º","TOP","FAMÍLIA MINGAL","PARAÍBA DO SUL",92,null,null,"19º","SUPER","RODRIGO","PETRÓPOLIS",91,null,null,"19º","MALVADO","MARCELO","SEBOLAS",92]
["20º","ABUSADO","NI SANTANA","TRÊS RIOS",58,76,null,null,"20º","SUPER","RODRIGO","PETRÓPOLIS",94,null,null,"20º","DEMOLIDOR","MICHEL","TRÊS RIOS",83,null,null,"20º","INTERESSEIRO","FELIPE MACEDO","GUARARÁ",90,null,null,"20º","MANDELA","MÁRCIO","TRÊS RIOS",87]
["21º","JOHN WICK","IVERSON","TRÊS RIOS",56,76,null,null,"21º","BOI BANDIDO","VINICIOS","ANTA",91,null,null,"21º","NEGUINHO","JESUS DE PAULA","TRÊS RIOS",82,null,null,"21º","TURBO","ADRIANO","PETRÓPOLIS",90,null,null,"21º","PAIZÃO","FERNANDO SIMÃO","PETRÓPOLIS",85]
["22º","MÁXIMO","MATHEUS","PARAÍBA DO SUL",64,75,null,null,"22º","PROBLEMA","EMERSON","ANTA",90,null,null,"22º","PIRRALHO","IGOR","PARAÍBA DO SUL",81,null,null,"22º","BOPE","GILSON/GUSTAVO","S. DUMONT/TRÊS RIOS",88,null,null,"22º","GABIGOL","ADELMO","PARAÍBA DO SUL",85]
["23º","FULGORE","SILAS FLÁVIO","TRÊS RIOS",57,73,null,null,"23º","MAESTRO FILHO","RAFAEL","PARAÍBA DO SUL",84,null,null,"23º","RD","ROBSON CAMPOS","PETRÓPOLIS",75,null,null,"23º","PROBLEMA","EMERSON","ANTA",86,null,null,"23º","SUSSURRO","DOMINGOS","PARAÍBA DO SUL",80]
["24º","MAGAYVER","JESUS","TRÊS RIOS",94,70,null,null,"24º","PAVAROTI JR.","ELIOMAR","TRÊS RIOS",80,null,null,"24º","GUERREIRO","ELISEU ARCANJO","TRÊS RIOS",74,null,null,"24º","CYCLOPE","RENATO","JUIZ DE FORA",70,null,null,"24º","APTO","JANDERSON","TRÊS RIOS",78]
["25º","JUSTICEIRO","WELITON","SEBOLAS",67,67,null,null,"25º","SUSSURRO","CH/DOMINGOS","PARAÍBA DO SUL",75,null,null,"25º","SEM EDUCAÇÃO","MAGNO","RIO DAS FLORES",70,null,null,"25º","MANDELA","MÁRCIO","TRÊS RIOS",70,null,null,"25º","WOLVERINE","MURILO","TRÊS RIOS",73]
["26º","KRATOS","LEANDRO","TRÊS RIOS",50,65,null,null,"26º","TALENTO","LOIRIN","PARAÍBA DO SUL",68,null,null,"26º","QUEBRA OSSO","GABRIEL/DJ RODRIGO","PARAÍBA DO SUL",66,null,null,"26º","ESTRELA","JOSÉ PEREIRA","TRÊS RIOS",68,null,null,"26º","TOP","FAMÍLIA MINGAL","PARAÍBA DO SUL",70]
["27º","FORÇA JOVEM","CARLOS VINICIOS","TRÊS RIOS",57,58,null,null,"27º","FORÇA JOVEM","CARLOS VINICIOS","PETRÓPOLIS",68,null,null,"27º","DIEGO","EULER","TRÊS RIOS",64,null,null,"27º","CEIFADOR","MARCOS EVARISTO","JUIZ DE FORA",64,null,null,"27º","COBALTO","FÁBIO","TRÊS RIOS",66]
["28º","MAROLA","LEANDRO","TRÊS RIOS",50,52,null,null,"28º","DUBLÊ","GILSON/GUSTAVO","SANTOS DUMONT",67,null,null,"28º","OURO BRUTO","MARQUINHO","TRÊS RIOS",57,null,null,"28º","CARIBE","MARCIO","PARAÍBA DO SUL",54,null,null,"28º"]
["29º","BEIRA MAR","CAROÇO","ANTA",45,36,null,null,"29º","DIEGO","EULER","TRÊS RIOS",67,null,null,"29º","ABUSADO","NI SANTANA","TRÊS RIOS",54,null,null,"29º","NARUTO","RODOLFO","TRÊS RIOS",50,null,null,"29º"]
["30º",null,null,null,null,null,null,null,"30º","RD","ROBSON CAMPOS","PETRÓPOLIS",63,null,null,"30º","KRATOS","LEANDRO","TRÊS RIOS",53,null,null,"30º","KRATOS","LEANDRO","TRÊS RIOS",45,null,null,"30º"]
["31º",null,null,null,null,null,null,null,"31º","FARÃO","RAFAEL SATYRO","PETRÓPOLIS",62,null,null,"31º",null,null,null,null,null,null,"31º",null,null,null,null,null,null,"31º"]
["32º",null,null,null,null,null,null,null,"32º",null,null,null,null,null,null,"32º",null,null,null,null,null,null,"32º",null,null,null,null,null,null,"32º"]
["33º",null,null,null,null,null,null,null,"33º",null,null,null,null,null,null,"33º",null,null,null,null,null,null,"33º",null,null,null,null,null,null,"33º"]
["34º",null,null,null,null,null,null,null,"34º",null,null,null,null,null,null,"34º",null,null,null,null,null,null,"34º",null,null,null,null,null,null,"34º"]
["35º",null,null,null,null,null,null,null,"35º",null,null,null,null,null,null,"35º",null,null,null,null,null,null,"35º",null,null,null,null,null,null,"35º"]
["36º",null,null,null,null,null,null,null,"36º",null,null,null,null,null,null,"36º",null,null,null,null,null,null,"36º",null,null,null,null,null,null,"36º"]
["37º",null,null,null,null,null,null,null,"37º",null,null,null,null,null,null,"37º",null,null,null,null,null,null,"37º",null,null,null,null,null,null,"37º"]
["38º",null,null,null,null,null,null,null,"38º",null,null,null,null,null,null,"38º",null,null,null,null,null,null,"38º",null,null,null,null,null,null,"38º"]
["39º",null,null,null,null,null,null,null,"39º",null,null,null,null,null,null,"39º",null,null,null,null,null,null,"39º",null,null,null,null,null,null,"39º"]
["40º",null,null,null,null,null,null,null,"40º",null,null,null,null,null,null,"40º",null,null,null,null,null,null,"40º",null,null,null,null,null,null,"40º"]

{"sheet":"set2025","index":4,"n_rows":42,"n_cols":27,"rows_kept":42,"cut":false,"hidden":false,"merged":[[0,0,0,5],[0,7,0,12],[0,14,0,19],[0,21,0,26]]}
["07/09/2025 (DOMINGO)",null,null,null,null,null,null,"14/09/2025 (DOMINGO)",null,null,null,null,null,null,"21/09/2025 (DOMINGO)",null,null,null,null,null,null,"28/09/2025 (DOMINGO)"]
["POS.","PÁSSARO","PROPRIETÁRIO","ORIGEM","CANTOS","PONTOS",null,"POS.","PÁSSARO","PROPRIETÁRIO","ORIGEM","CANTOS","PONTOS",null,"POS.","PÁSSARO","PROPRIETÁRIO","ORIGEM","CANTOS","PONTOS",null,"POS.","PÁSSARO","PROPRIETÁRIO","ORIGEM","CANTOS","PONTOS"]
["1º","BOLSONARO","DANIEL","JUIZ DE FORA",143,30,null,"1º","CRACK","ALCINEI/FRANÇA","JUIZ DE FORA",200,30,null,"1º","ASTRO","ALEXANDRE/ANA CARLA","SOUZA AGUIAR",153,30,null,"1º","MEIA NOITE","MARCÃO","JUIZ DE FORA",196,30]
["2º","MOLEQUE DOIDO","MARINHO","SANTOS DUMONT",133,28,null,"2º","DITADOR","FELIPE","ROCHEDO DE MINAS",171,28,null,"2º","MAESTRO","TONI","JUIZ DE FORA",141,28,null,"2º","MATA RINDO","JUNINHO/ALESSANDRO/DIEGO","JUIZ DE FORA",151,28]
["3º","MARRETA","GUSTAVO/GILSON","TRÊS RIOS/SANTOS DUMONT",132,26,null,"3º","ASTRO","ALEXANDRE/ANA CARLA","SOUZA AGUIAR",161,26,null,"3º","TOP","JÚLIO FAMÍLIA MINGAL","PARAÍBA DO SUL",141,26,null,"3º","FANTÁSTICO","TIAGUINHO","JUIZ DE FORA",138,26]
["4º","TORNADO","NILMAR","MAR DE ESPANHA",131,24,null,"4º","SUPREME","ANDRÉ AGUIAR","PARAÍBA DO SUL",157,24,null,"4º","BICO BOM","PERROTA","PARAÍBA DO SUL",133,24,null,"4º","ASA BRANCA","THIAGO BATISTA","PETRÓPOLIS",137,24]
["5º","ZEUS","ARTHUR/ALESSANDRO","JUIZ DE FORA",130,23,null,"5º","RARIDADE","TIAGUINHO","JUIZ DE FORA",137,23,null,"5º","NEGO VEIO","LUIZINHO","PETRÓPOLIS",132,23,null,"5º","LEKE","GUSTAVO","PARAÍBA DO SUL",135,23]
["6º","NEGO VEIO","LUIZINHO","PETRÓPOLIS",124,22,null,"6º","ALMIRANTE","SAMUEL MATOS","MARIPÁ DE MINAS",132,22,null,"6º","AMOSTRADINHO","GUSTAVO/GILSON","TRÊS RIOS/S. DUMONT",123,22,null,"6º","MARAVILHA","RUAN","MAR DE ESPANHA",133,22]
["7º","BICO BOM","PERROTA","PARAÍBA DO SUL",121,21,null,"7º","MALVADO","ADALBERTO","BEMPOSTA",128,21,null,"7º","PROBLEMA","EMERSON","ANTA",122,21,null,"7º","BUCAINHA","CYR NORBERTO","JUIZ DE FORA",132,21]
["8º","PROBLEMA","EMERSON","ANTA",120,20,null,"8º","MARRETA","LUCAS PIU PIU","TRÊS RIOS",127,20,null,"8º","DITADOR","RODRIGO/FELIPE","ROCHEDO DE MINAS",118,20,null,"8º","FERA","REINALDO","JUIZ DE FORA",130,20]
["9º","ATREVIDO","JOSENILTON","PARAÍBA DO SUL",115,19,null,"9º","VELOX","RENNER","MARIPÁ DE MINAS",123,19,null,"9º","007","GUSTAVO/GILSON","TRÊS RIOS/S. DUMONT",117,19,null,"9º","PROBLEMA","EMERSON","ANTA",129,19]
["10º","LOKI","PAULINHO/ARTHUR","TRÊS RIOS",113,18,null,"10º","PROBLEMA","EMERSON","ANTA",120,18,null,"10º","LOK","PAULINHO","TRÊS RIOS",116,18,null,"10º","LOKI","PAULINHO/ARTHUR","TRÊS RIOS",127,18]
["11º","MAGAYVER","JESUS DE PAULA","TRÊS RIOS",110,17,null,"11º","TOP","FAMÍLIA MINGAL","PARAÍBA DO SUL",120,17,null,"11º","CATEDRAL","GUSTAVO/GILSON","TRÊS RIOS/S. DUMONT",113,17,null,"11º","NEGO VEIO","LUIZINHO","PETRÓPOLIS",125,17]
["12º","BRUTO","RUAN BARRINHA","PARAÍBA DO SUL",109,16,null,"12º","QUEBRA SANTO","JOÃO CARLOS","JUIZ DE FORA",119,16,null,"12º","FERA","REINALDO","JUIZ DE FORA",111,16,null,"12º","PORCO","BRUNO/RODRIGO","PETRÓPOLIS",122,16]
["13º","BOLO DOIDO","IGOR","PARAÍBA DO SUL",101,15,null,"13º","NEGO VEIO","LUIZINHO","PETRÓPOLIS",119,15,null,"13º","V8","DOUGLAS","TRÊS RIOS",109,15,null,"13º","MARRETA","GUSTAVO/GILSON","TRÊS RIOS/S. DUMONT",121,15]
["14º","DINO","AMILTON","JUIZ DE FORA",100,14,null,"14º","SUPER SONICO","GABRIEL","MAR DE ESPANHA",117,14,null,"14º","CAVEIRÃO","CLOVIS/RODRIGO","TRÊS RIOS",108,14,null,"14º","BICO BOM","PERROTA","PARAÍBA DO SUL",120,14]
["15º","DOPAMINA","RAPHAEL","MATIAS BARBOSA",100,13,null,"15º","NOVATO","LUCIMAR/LUIZ HENRIQUE","TRÊS RIOS",117,13,null,"15º","COVID-19","GUSTAVO/GILSON","TRÊS RIOS/S. DUMONT",106,13,null,"15º","OURO BRANCO","FELIPE","TRÊS RIOS",118,13]
["16º","MAESTRO FILHO","RAFAEL","PARAÍBA DO SUL",100,null,null,"16º","BICO BOM","PERROTA","PARAÍBA DO SUL",115,null,null,"16º","NEGUINHO","JESUS DE PAULA","TRÊS RIOS",105,null,null,"16º","FARISEU","WL FAMÍLIA MINGAL","PARAÍBA DO SUL",117]
["17º","IGNORANTE","JUNINHO","TRÊS RIOS",96,null,null,"17º","LOKI","PAULINHO","TRÊS RIOS",110,null,null,"17º","RAMBO","LUIZINHO","PETRÓPOLIS",94,null,null,"17º","DINO","AMILTON","JUIZ DE FORA",116]
["18º","FORÇA JOVEM","VINICIOS","TRÊS RIOS",95,null,null,"18º","ZEUS","RATINHO","VALENÇA",108,null,null,"18º","TALENTO","CRISTIAN GARCIA","PARAÍBA DO SUL",82,null,null,"18º","CATEDRAL","GUSTAVO/GILSON","TRÊS RIOS/S. DUMONT",116]
["19º","RAMBO","LUIZINHO","PETRÓPOLIS",94,null,null,"19º","BRUTO","RUAN BARRINHA","PARAÍBA DO SUL",108,null,null,"19º","01","LEANDRO","TRÊS RIOS",71,null,null,"19º","TERRORISTA","FÁBIO","TRÊS RIOS",112]
["20º","GUERREIRO","CH FAMÍLIA MINGAL","PARAÍBA DO SUL",92,null,null,"20º","BANDIDO","FLÁVIO","SAPUCAIA",104,null,null,"20º","DEMOLIDOR","MICHEL","TRÊS RIOS",68,null,null,"20º","ATREVIDO","JOSENILTON","PARAÍBA DO SUL",105]
["21º","GULU GULU","LUIS CLAUDIO","?",87,null,null,"21º","MAESTRO FILHO","RAFAEL","PARAÍBA DO SUL",101,null,null,"21º","FV","FELIPE","TRÊS RIOS",64,null,null,"21º","NOVATO","LUCIMAR/LUIZ HENRIQUE","TRÊS RIOS",104]
["22º","FARISEU","FAMÍLIA MINGAL","PARAÍBA DO SUL",77,null,null,"22º","RAMBO","LUIZINHO","PETRÓPOLIS",97,null,null,"22º","TSUNAMI","BRUNO","TRÊS RIOS",62,null,null,"22º","NEFILIN","OTONIEL","TRÊS RIOS",101]
["23º","DEMOLIDOR","MICHEL","TRÊS RIOS",69,null,null,"23º","OURO BRANCO","FELIPE","PARAÍBA DO SUL",97,null,null,"23º","NISSAN","JEFFERSON","PARAÍBA DO SUL",44,null,null,"23º","CASSINO","LEO","PETRÓPOLIS",98]
["24º","MANDELA","MÁRCIO","TRÊS RIOS",60,null,null,"24º","TITAN","JÚNIOR","MARIPÁ DE MINAS",95,null,null,"24º",null,null,null,null,null,null,"24º","ATIRADOR","GELSON","TRÊS RIOS",96]
["25º","TERRORISTA","ALEXANDRE","TRÊS RIOS",51,null,null,"25º","MERCENÁRIO","FELIPE","JUIZ DE FORA",94,null,null,"25º",null,null,null,null,null,null,"25º","TAURUS","MATHEUS/TIM","JUIZ DE FORA",95]
["26º","BLAID","JEFERSON","PARAÍBA DO SUL",43,null,null,"26º","QUEBRA OSSO","ANTÔNIO","MARCOS",94,null,null,"26º",null,null,null,null,null,null,"26º","V8","DOUGLAS","TRÊS RIOS",93]
["27º",null,null,null,null,null,null,"27º","BIPOLAR","LUIZ CARLOS","MIGUEL PEREIRA",92,null,null,"27º",null,null,null,null,null,null,"27º","GUERREIRO","CH FAMÍLIA MINGAL","PARAÍBA DO SUL",90]
["28º",null,null,null,null,null,null,"28º","FULGORE","SILAS FLÁVIO","TRÊS RIOS",88,null,null,"28º",null,null,null,null,null,null,"28º","ARIZONA","KLEBER","AREAL",87]
["29º",null,null,null,null,null,null,"29º","FORÇA JOVEM","VINICIOS","TRÊS RIOS",88,null,null,"29º",null,null,null,null,null,null,"29º","TALENTO","CARLOS ALEXANDRE","TRÊS RIOS",84]
["30º",null,null,null,null,null,null,"30º","DIEGO","EULER","TRÊS RIOS",81,null,null,"30º",null,null,null,null,null,null,"30º","MAGAIRE","LUCAS","TRÊS RIOS",80]
["31º",null,null,null,null,null,null,"31º","ATREVIDO","JOSENILTON","PARAÍBA DO SUL",77,null,null,"31º",null,null,null,null,null,null,"31º","COCA COLA","RENAN","TRÊS RIOS",76]
["32º",null,null,null,null,null,null,"32º","TSUNAMI","BRUNO","TRÊS RIOS",77,null,null,"32º",null,null,null,null,null,null,"32º"]
["33º",null,null,null,null,null,null,"33º","GUERREIRO","CH FAMÍLIA MINGAL","PARAÍBA DO SUL",75,null,null,"33º",null,null,null,null,null,null,"33º"]
["34º",null,null,null,null,null,null,"34º","MADIMBU","VINICIOS","PARAÍBA DO SUL",73,null,null,"34º",null,null,null,null,null,null,"34º"]
["35º",null,null,null,null,null,null,"35º","PEPE","MARCUS VINICIUS","TRÊS RIOS",71,null,null,"35º",null,null,null,null,null,null,"35º"]
["36º",null,null,null,null,null,null,"36º","CHORÃO","DIEGO DA SILVA","PARAÍBA DO SUL",67,null,null,"36º",null,null,null,null,null,null,"36º"]
["37º",null,null,null,null,null,null,"37º","BOI BANDIDO","VINICIOS","ANTA",54,null,null,"37º",null,null,null,null,null,null,"37º"]
["38º",null,null,null,null,null,null,"38º",null,null,null,null,null,null,"38º",null,null,null,null,null,null,"38º"]
["39º",null,null,null,null,null,null,"39º",null,null,null,null,null,null,"39º",null,null,null,null,null,null,"39º"]
["40º",null,null,null,null,null,null,"40º",null,null,null,null,null,null,"40º",null,null,null,null,null,null,"40º"]

{"sheet":"out2025","index":5,"n_rows":42,"n_cols":27,"rows_kept":42,"cut":false,"hidden":false,"merged":[[0,0,0,5],[0,7,0,12],[0,14,0,19],[0,21,0,27]]}
["05/10/2025 (DOMINGO)",null,null,null,null,null,null,"12/10/2025 (DOMINGO)",null,null,null,null,null,null,"19/10/2025 (DOMINGO)",null,null,null,null,null,null,"26/10/2025 (DOMINGO)"]
["POS.","PÁSSARO","PROPRIETÁRIO","ORIGEM","CANTOS","PONTOS",null,"POS.","PÁSSARO","PROPRIETÁRIO","ORIGEM","CANTOS","PONTOS",null,"POS.","PÁSSARO","PROPRIETÁRIO","ORIGEM","CANTOS","PONTOS",null,"POS.","PÁSSARO","PROPRIETÁRIO","ORIGEM","CANTOS","PONTOS"]
["1º","MOLEQUE DOIDO","JOSÉ AMÉRICO","DORES DE CAMPOS",180,30,null,"1º","CRUEL","RODRIGO/FELIPE","ROCHEDO DE MINAS",136,30,null,"1º","CAPITÃO","JÚNIOR PAIXÃO","PETRÓPOLIS",152,30,null,"1º","ZICO","MARCINHO/BRUNO","JUIZ DE FORA",136,30]
["2º","CRUEL","RODRIGO/FELIPE","ROCHEDO DE MINAS",165,28,null,"2º","MAESTRO","TONI","JUIZ DE FORA",132,28,null,"2º","BAZUCA","ADALBERTO","BEMPOSTA",151,28,null,"2º","PROBLEMA","EMERSON","ANTA",136,28]
["3º","SCARFACE","QUAQUÁ/PETETECO","AVELAR",141,26,null,"3º","SEM LIMITE","JUNINHO","TRÊS RIOS",132,26,null,"3º","EXCALIBUR","NATANAEL","BEMPOSTA",140,26,null,"3º","FEROZ","GILSON/GUSTAVO","TRÊS RIOS/S. DUMONT",120,26]
["4º","BRASILEIRINHO","PAULINHO/ARTHUR","TRÊS RIOS",135,24,null,"4º","MARESIA","GABRIEL","MARIPÁ DE MINAS",130,24,null,"4º","NEGO VEIO","LUIZINHO","PETRÓPOLIS",136,24,null,"4º","TURBO","ADRIANO","PETRÓPOLIS",118,24]
["5º","ZEUS","ARTHUR/ALESSANDRO","JUIZ DE FORA",134,23,null,"5º","NEGO VEIO","LUIZINHO","PETRÓPOLIS",129,23,null,"5º","BICO BOM","PERROTA","PARAÍBA DO SUL",135,23,null,"5º","ATREVIDO","JOSENILTON","PARAÍBA DO SUL",115,23]
["6º","NEGO VEIO","LUIZINHO","PETRÓPOLIS",133,22,null,"6º","PROBLEMA","EMERSON","ANTA",127,22,null,"6º","CRUEL","RODRIGO/FELIPE","ROCHEDO DE MINAS",133,22,null,"6º","BIG 2","FABIANO","PETRÓPOLIS",113,22]
["7º","MAESTRO","TONI","JUIZ DE FORA",130,21,null,"7º","IMPERADOR","LUIS/ZECA","CHIADOR",121,21,null,"7º","PROBLEMA","EMERSON","ANTA",126,21,null,"7º","THOR","JÚNIOR","MARIPÁ DE MINAS",112,21]
["8º","OURO BRANCO","FELIPE","TRÊS RIOS",129,20,null,"8º","FARISEU","WL FAMÍLIA MINGAL","PARAÍBA DO SUL",119,20,null,"8º","TAURUS","LÉO","PETRÓPOLIS",125,20,null,"8º","GUARDIÃO","JONAS","PETRÓPOLIS",110,20]
["9º","LEKE","GUSTAVO","PARAÍBA DO SUL",125,19,null,"9º","POPAYE","GILSON/GUSTAVO","TRÊS RIOS/S. DUMONT",108,19,null,"9º","ABUSADO","MÁRCIO","PETRÓPOLIS",124,19,null,"9º","CYBORG","FAL","MARIPÁ DE MINAS",106,19]
["10º","TURBO","ADRIANO","PETRÓPOLIS",124,18,null,"10º","ATREVIDO","JOSENILTON","PARAÍBA DO SUL",106,18,null,"10º","MAESTRO","TONI","JUIZ DE FORA",123,18,null,"10º","SAMURAI","VANDERLY","BICAS",106,18]
["11º","NEFILIN","OTONIEL","TRÊS RIOS",117,17,null,"11º","LOKI","PAULINHO/ARTHUR","TRÊS RIOS",101,17,null,"11º","SEM LIMITE","JUNINHO","TRÊS RIOS",119,17,null,"11º","NEGUINHO","JESUS DE PAULA","TRÊS RIOS",105,17]
["12º","TORETO","JOÃO VITOR","PETRÓPOLIS",116,16,null,"12º","KI SHOW","RODRIGO/RAFAEL","PETRÓPOLIS",98,16,null,"12º","ATREVIDO","JOSENILTON","PARAÍBA DO SUL",117,16,null,"12º","POPAYE","GILSON/GUSTAVO","TRÊS RIOS/S. DUMONT",96,16]
["13º","ABUSADO","MÁRCIO","PETRÓPOLIS",115,15,null,"13º","VENENO","NOVELINO","JUIZ DE FORA",96,15,null,"13º","FAIXA PRETA","LEONARDO","TRÊS RIOS",114,15,null,"13º","EXTINTOR","JOÃO MARCOS","AREAL",94,15]
["14º","TIROTEIO","DOUGLAS/CABRITO","JUIZ DE FORA",113,14,null,"14º","LEGENDÁRIO","LUIZ PENA BRANCA","JUIZ DE FORA",90,14,null,"14º","BIG SHOW","ITALO SANTOS","PARAÍBA DO SUL",107,14,null,"14º","BIG SHOW","ITALO SANTOS","PARAÍBA DO SUL",92,14]
["15º","ATREVIDO","JOSENILTON","PARAÍBA DO SUL",112,13,null,"15º","FULGORE","SILAS","TRÊS RIOS",86,13,null,"15º","FARISEU","WL FAMÍLIA MINGAL","PARAÍBA DO SUL",98,13,null,"15º","BOI BANDIDO","VINICIOS","ANTA",86,13]
["16º","BRUTO","RUAN BARRINHA","PARAÍBA DO SUL",109,null,null,"16º","ROCK LEE","GLEISSON","TRÊS RIOS",82,null,null,"16º","NOVATO","LUCIMAR/LUIZ HENRIQUE","TRÊS RIOS",98,null,null,"16º","METEORO","HARLEI","TRÊS RIOS",74]
["17º","CATEDRAL","GUSTAVO/GILSON","TRÊS RIOS/S. DUMONT",108,null,null,"17º","DESTRUIDOR","SANDRO","TRÊS RIOS",77,null,null,"17º","SUPER BOY","EDU","TRÊS RIOS",89,null,null,"17º","TREM BOM","KLEBER","AREAL",72]
["18º","INDOMÁVEL","MATHEUS/ALESSANDRO","JUIZ DE FORA",106,null,null,"18º","MAD MAX","DIEGO","PARAÍBA DO SUL",45,null,null,"18º","TRUCO","IGOR DE PAULA","TRÊS RIOS",87,null,null,"18º","RAMBO","LEANDRO SILVA","GUARARÁ",71]
["19º","PROBLEMA","EMERSON","ANTA",101,null,null,"19º",null,null,null,null,null,null,"19º","GUERREIRO","AUGUSTO","PARAÍBA DO SUL",75,null,null,"19º","EXCLUSIVO","CAPIVARA","PETRÓPOLIS",61]
["20º","FARISEU","WL FAMÍLIA MINGAL","PARAÍBA DO SUL",101,null,null,"20º",null,null,null,null,null,null,"20º","AMERICANO","TIKO","TRÊS RIOS",66,null,null,"20º"]
["21º","POPAYE","GILSON/GUSTAVO","TRÊS RIOS/S. DUMONT",99,null,null,"21º",null,null,null,null,null,null,"21º",null,null,null,null,null,null,"21º"]
["22º","?","GLEISON","TRÊS RIOS",97,null,null,"22º",null,null,null,null,null,null,"22º",null,null,null,null,null,null,"22º"]
["23º","SUSSURRO","DOMINGOS","PARAÍBA DO SUL",93,null,null,"23º",null,null,null,null,null,null,"23º",null,null,null,null,null,null,"23º"]
["24º","RAMBO","LUIZINHO","PETRÓPOLIS",88,null,null,"24º",null,null,null,null,null,null,"24º",null,null,null,null,null,null,"24º"]
["25º","PRATA DA CASA","MATHEUS","PARAÍBA DO SUL",88,null,null,"25º",null,null,null,null,null,null,"25º",null,null,null,null,null,null,"25º"]
["26º","MAVERICK","DOUGLAS FAGUNDES","PETRÓPOLIS",87,null,null,"26º",null,null,null,null,null,null,"26º",null,null,null,null,null,null,"26º"]
["27º","LEGENDÁRIO","LUIZ PENA BRANCA","JUIZ DE FORA",85,null,null,"27º",null,null,null,null,null,null,"27º",null,null,null,null,null,null,"27º"]
["28º","ASA BRANCA","THIAGO","JUIZ DE FORA",71,null,null,"28º",null,null,null,null,null,null,"28º",null,null,null,null,null,null,"28º"]
["29º","VILÃO","?","JUIZ DE FORA",51,null,null,"29º",null,null,null,null,null,null,"29º",null,null,null,null,null,null,"29º"]
["30º","MAXIM","VINÍCIUS RAMOS","PARAÍBA DO SUL",50,null,null,"30º",null,null,null,null,null,null,"30º",null,null,null,null,null,null,"30º"]
["31º","CARRETEL","ADRIANO","JUIZ DE FORA",48,null,null,"31º",null,null,null,null,null,null,"31º",null,null,null,null,null,null,"31º"]
["32º",null,null,null,null,null,null,"32º",null,null,null,null,null,null,"32º",null,null,null,null,null,null,"32º"]
["33º",null,null,null,null,null,null,"33º",null,null,null,null,null,null,"33º",null,null,null,null,null,null,"33º"]
["34º",null,null,null,null,null,null,"34º",null,null,null,null,null,null,"34º",null,null,null,null,null,null,"34º"]
["35º",null,null,null,null,null,null,"35º",null,null,null,null,null,null,"35º",null,null,null,null,null,null,"35º"]
["36º",null,null,null,null,null,null,"36º",null,null,null,null,null,null,"36º",null,null,null,null,null,null,"36º"]
["37º",null,null,null,null,null,null,"37º",null,null,null,null,null,null,"37º",null,null,null,null,null,null,"37º"]
["38º",null,null,null,null,null,null,"38º",null,null,null,null,null,null,"38º",null,null,null,null,null,null,"38º"]
["39º",null,null,null,null,null,null,"39º",null,null,null,null,null,null,"39º",null,null,null,null,null,null,"39º"]
["40º",null,null,null,null,null,null,"40º",null,null,null,null,null,null,"40º",null,null,null,null,null,null,"40º"]